[Event "Titled Tuesday Blitz January 03 Early 2023"]
[White "Dos Santos, Emmanuel"]
[Black "Martinez, Shawn"]
[WhiteFideId "2103559"]
[BlackFideId "2039770"]
[WhiteElo "2261"]
[BlackElo "1881"]
[Result "0-1"]
[Round "07"]
[TimeControl "180+2"]
[Date "2023.01.03"]
[WhiteClock "0:00:14"]
[BlackClock "0:00:09"]

1. Nf3 {[%clk 0:02:58]}  g6 {[%clk 0:02:55]} 2. g3 {[%clk 0:02:56]}  Bg7 {[%clk 0:02:56]} 3. Bg2 {[%clk 0:02:55]}  h6 {[%clk 0:02:55]} 4. d4 {[%clk 0:02:45]}  d6 {[%clk 0:02:54]} 5. c4 {[%clk 0:02:41]}  e6 {[%clk 0:02:51]} 6. Nc3 {[%clk 0:02:41]}  Ne7 {[%clk 0:02:49]} 7. a3 {[%clk 0:02:35]}  Nd7 {[%clk 0:02:28]} 8. O-O {[%clk 0:02:32]}  O-O {[%clk 0:02:29]} 9. Rb1 {[%clk 0:02:22]}  a6 {[%clk 0:02:07]} 10. Qc2 {[%clk 0:02:18]}  Rb8 {[%clk 0:02:07]} 11. b4 {[%clk 0:02:18]}  b6 {[%clk 0:02:06]} 12. h4 {[%clk 0:02:11]}  Bb7 {[%clk 0:02:03]} 13. h5 {[%clk 0:02:11]}  gxh5 {[%clk 0:01:44]} 14. Bd2 {[%clk 0:01:49]}  Ng6 {[%clk 0:01:41]} 15. e4 {[%clk 0:01:21]}  h4 {[%clk 0:01:30]} 16. Qc1 {[%clk 0:01:16]}  Kh7 {[%clk 0:01:29]} 17. d5 {[%clk 0:01:02]}  Nde5 {[%clk 0:01:08]} 18. Ne2 {[%clk 0:01:00]}  f5 {[%clk 0:00:54]} 19. exf5 {[%clk 0:00:54]}  exf5 {[%clk 0:00:20]} 20. Ned4 {[%clk 0:00:45]}  Bc8 {[%clk 0:00:15]} 21. Qc2 {[%clk 0:00:35]}  Qf6 {[%clk 0:00:11]} 22. Bh3 {[%clk 0:00:26]}  f4 {[%clk 0:00:09]} 23. Bxc8 {[%clk 0:00:26]}  Rbxc8 {[%clk 0:00:09]} 24. Nxe5 {[%clk 0:00:26]}  dxe5 {[%clk 0:00:07]} 25. Ne6 {[%clk 0:00:25]}  hxg3 {[%clk 0:00:07]} 26. fxg3 {[%clk 0:00:21]}  Rf7 {[%clk 0:00:04]} 27. gxf4 {[%clk 0:00:20]}  exf4 {[%clk 0:00:04]} 28. Nxg7 {[%clk 0:00:19]}  Rxg7 {[%clk 0:00:03]} 29. Kf2 {[%clk 0:00:18]}  Qd4+ {[%clk 0:00:02]} 30. Ke1 {[%clk 0:00:17]}  Re8+ {[%clk 0:00:03]} 31. Kd1 {[%clk 0:00:18]}  Qe5 {[%clk 0:00:03]} 32. Re1 {[%clk 0:00:18]}  Qh5+ {[%clk 0:00:03]} 33. Kc1 {[%clk 0:00:18]}  Rge7 {[%clk 0:00:04]} 34. Rxe7+ {[%clk 0:00:17]}  Rxe7 {[%clk 0:00:04]} 35. Kb2 {[%clk 0:00:18]}  Re2 {[%clk 0:00:04]} 36. Qd3 {[%clk 0:00:19]}  Qe5+ {[%clk 0:00:04]} 37. Kb3 {[%clk 0:00:18]}  Qe4 {[%clk 0:00:04]} 38. Qxe4 {[%clk 0:00:18]}  Rxe4 {[%clk 0:00:04]} 39. Rf1 {[%clk 0:00:18]}  h5 {[%clk 0:00:04]} 40. Kc3 {[%clk 0:00:17]}  h4 {[%clk 0:00:04]} 41. Kd3 {[%clk 0:00:18]}  Re8 {[%clk 0:00:04]} 42. c5 {[%clk 0:00:13]}  Kh6 {[%clk 0:00:03]} 43. d6 {[%clk 0:00:13]}  cxd6 {[%clk 0:00:03]} 44. cxd6 {[%clk 0:00:14]}  Kh5 {[%clk 0:00:04]} 45. Bxf4 {[%clk 0:00:14]}  Kg4 {[%clk 0:00:03]} 46. Bh2 {[%clk 0:00:13]}  Rd8 {[%clk 0:00:03]} 47. Kc4 {[%clk 0:00:13]}  Kh3 {[%clk 0:00:02]} 48. Bf4 {[%clk 0:00:13]}  Kg2 {[%clk 0:00:03]} 49. Rd1 {[%clk 0:00:10]}  Nxf4 {[%clk 0:00:03]} 50. Kd4 {[%clk 0:00:10]}  h3 {[%clk 0:00:03]} 51. Ke5 {[%clk 0:00:09]}  Ng6+ {[%clk 0:00:02]} 52. Kf6 {[%clk 0:00:10]}  Nf4 {[%clk 0:00:02]} 53. Ke7 {[%clk 0:00:10]}  Rh8 {[%clk 0:00:02]} 54. d7 {[%clk 0:00:10]}  Ng6+ {[%clk 0:00:03]} 55. Kf7 {[%clk 0:00:10]}  Ne5+ {[%clk 0:00:03]} 56. Ke6 {[%clk 0:00:10]}  Nxd7 {[%clk 0:00:02]} 57. Kxd7 {[%clk 0:00:11]}  h2 {[%clk 0:00:03]} 58. Kc6 {[%clk 0:00:11]}  Rh6+ {[%clk 0:00:03]} 59. Kb7 {[%clk 0:00:11]}  a5 {[%clk 0:00:03]} 60. bxa5 {[%clk 0:00:11]}  bxa5 {[%clk 0:00:04]} 61. a4 {[%clk 0:00:11]}  h1=Q {[%clk 0:00:04]} 62. Rxh1 {[%clk 0:00:11]}  Kxh1 {[%clk 0:00:05]} 63. Kc7 {[%clk 0:00:10]}  Kg2 {[%clk 0:00:06]} 64. Kb7 {[%clk 0:00:11]}  Kf3 {[%clk 0:00:06]} 65. Kc7 {[%clk 0:00:12]}  Ke4 {[%clk 0:00:07]} 66. Kb7 {[%clk 0:00:13]}  Kd4 {[%clk 0:00:07]} 67. Kc7 {[%clk 0:00:13]}  Kc4 {[%clk 0:00:08]} 68. Kb7 {[%clk 0:00:14]}  Kb4 {[%clk 0:00:09]} 69. Kc7 {[%clk 0:00:14]}  Kxa4 {[%clk 0:00:09]} 0-1


[Site "https://www.chess.com"]

[Event "Titled Tuesday Blitz January 03 Early 2023"]
[White "Pein, Malcolm"]
[Black "Fernandez Hernandez, Gerardo"]
[WhiteFideId "400289"]
[BlackFideId "2207400"]
[WhiteElo "2305"]
[BlackElo "2181"]
[Result "0-1"]
[Round "07"]
[TimeControl "180+2"]
[Date "2023.01.03"]
[WhiteClock "0:02:32"]
[BlackClock "0:02:39"]

1. e4 {[%clk 0:02:54]}  e6 {[%clk 0:02:59]} 2. d4 {[%clk 0:02:53]}  d5 {[%clk 0:03:00]} 3. Nc3 {[%clk 0:02:54]}  Nc6 {[%clk 0:03:00]} 4. Nf3 {[%clk 0:02:52]}  Nf6 {[%clk 0:03:00]} 5. e5 {[%clk 0:02:51]}  Ne4 {[%clk 0:02:57]} 6. Bd3 {[%clk 0:02:51]}  Bb4 {[%clk 0:02:57]} 7. Bd2 {[%clk 0:02:50]}  Nxd2 {[%clk 0:02:56]} 8. Qxd2 {[%clk 0:02:50]}  f6 {[%clk 0:02:57]} 9. O-O {[%clk 0:02:38]}  fxe5 {[%clk 0:02:49]} 10. a3 {[%clk 0:02:32]}  Bxc3 {[%clk 0:02:45]} 11. Qxc3 {[%clk 0:02:32]}  e4 {[%clk 0:02:44]} 12. Bb5 {[%clk 0:02:32]}  exf3 {[%clk 0:02:39]} 0-1


[Site "https://www.chess.com"]

[Event "Titled Tuesday Blitz January 03 Early 2023"]
[White "Tarnowska, Aleksandra"]
[Black "Winkels, Marcel"]
[WhiteFideId "1180967"]
[BlackFideId "1003887"]
[WhiteElo "1835"]
[BlackElo "1960"]
[Result "0-1"]
[Round "07"]
[TimeControl "180+2"]
[Date "2023.01.03"]
[WhiteClock "0:00:07"]
[BlackClock "0:00:27"]

1. e4 {[%clk 0:03:00]}  c5 {[%clk 0:02:59]} 2. Nf3 {[%clk 0:03:00]}  e6 {[%clk 0:02:59]} 3. d4 {[%clk 0:02:59]}  cxd4 {[%clk 0:02:59]} 4. Nxd4 {[%clk 0:03:00]}  Nc6 {[%clk 0:02:59]} 5. Nxc6 {[%clk 0:02:48]}  bxc6 {[%clk 0:02:58]} 6. c4 {[%clk 0:02:47]}  Bb4+ {[%clk 0:02:53]} 7. Nc3 {[%clk 0:02:30]}  Ne7 {[%clk 0:02:50]} 8. a3 {[%clk 0:02:19]}  Bxc3+ {[%clk 0:02:49]} 9. bxc3 {[%clk 0:02:20]}  O-O {[%clk 0:02:49]} 10. Bd3 {[%clk 0:02:16]}  d5 {[%clk 0:02:48]} 11. cxd5 {[%clk 0:02:14]}  exd5 {[%clk 0:02:46]} 12. e5 {[%clk 0:02:11]}  Ng6 {[%clk 0:02:45]} 13. Bxg6 {[%clk 0:01:59]}  hxg6 {[%clk 0:02:44]} 14. O-O {[%clk 0:01:58]}  Re8 {[%clk 0:02:37]} 15. f4 {[%clk 0:01:56]}  Bf5 {[%clk 0:02:33]} 16. Be3 {[%clk 0:01:51]}  Be4 {[%clk 0:02:25]} 17. Qg4 {[%clk 0:01:40]}  Qa5 {[%clk 0:02:12]} 18. Rfc1 {[%clk 0:01:31]}  Rab8 {[%clk 0:02:10]} 19. Qd7 {[%clk 0:01:30]}  Qb5 {[%clk 0:01:48]} 20. Qxa7 {[%clk 0:01:19]}  Qe2 {[%clk 0:01:42]} 21. Bf2 {[%clk 0:01:16]}  Qg4 {[%clk 0:01:34]} 22. Bg3 {[%clk 0:01:13]}  Rb2 {[%clk 0:01:33]} 23. Qe3 {[%clk 0:00:19]}  Rxg2+ {[%clk 0:01:25]} 24. Kf1 {[%clk 0:00:19]}  Rb8 {[%clk 0:01:11]} 25. e6 {[%clk 0:00:05]}  Qxe6 {[%clk 0:01:01]} 26. Bf2 {[%clk 0:00:02]}  Rb2 {[%clk 0:00:55]} 27. Re1 {[%clk 0:00:03]}  Rbxf2+ {[%clk 0:00:52]} 28. Qxf2 {[%clk 0:00:04]}  Rxf2+ {[%clk 0:00:53]} 29. Kxf2 {[%clk 0:00:05]}  Qf6 {[%clk 0:00:51]} 30. Re3 {[%clk 0:00:05]}  Qxf4+ {[%clk 0:00:50]} 31. Ke2 {[%clk 0:00:06]}  Qg4+ {[%clk 0:00:49]} 32. Kd2 {[%clk 0:00:06]}  Qf4 {[%clk 0:00:47]} 33. Re1 {[%clk 0:00:06]}  Qxh2+ {[%clk 0:00:46]} 34. R1e2 {[%clk 0:00:06]}  Qd6 {[%clk 0:00:45]} 35. Rh2 {[%clk 0:00:06]}  Qxa3 {[%clk 0:00:43]} 36. Reh3 {[%clk 0:00:06]}  f6 {[%clk 0:00:40]} 37. Rh8+ {[%clk 0:00:06]}  Kf7 {[%clk 0:00:40]} 38. Rc8 {[%clk 0:00:06]}  Qb2+ {[%clk 0:00:35]} 39. Ke3 {[%clk 0:00:05]}  Qxh2 {[%clk 0:00:35]} 40. Kd4 {[%clk 0:00:05]}  g5 {[%clk 0:00:35]} 41. Kc5 {[%clk 0:00:05]}  Qc2 {[%clk 0:00:33]} 42. c4 {[%clk 0:00:04]}  Qxc4+ {[%clk 0:00:32]} 43. Kd6 {[%clk 0:00:05]}  g4 {[%clk 0:00:30]} 44. Rc7+ {[%clk 0:00:05]}  Kg6 {[%clk 0:00:30]} 45. Ke7 {[%clk 0:00:05]}  g3 {[%clk 0:00:29]} 46. Kf8 {[%clk 0:00:05]}  g2 {[%clk 0:00:26]} 47. Rxg7+ {[%clk 0:00:05]}  Kf5 {[%clk 0:00:27]} 48. Rg8 {[%clk 0:00:04]}  Qc5+ {[%clk 0:00:27]} 49. Ke8 {[%clk 0:00:04]}  g1=Q {[%clk 0:00:27]} 50. Rxg1 {[%clk 0:00:04]}  Qxg1 {[%clk 0:00:27]} 51. Kf7 {[%clk 0:00:05]}  d4 {[%clk 0:00:27]} 52. Ke8 {[%clk 0:00:05]}  d3 {[%clk 0:00:27]} 53. Kf7 {[%clk 0:00:06]}  d2 {[%clk 0:00:28]} 54. Ke8 {[%clk 0:00:07]}  d1=Q {[%clk 0:00:28]} 55. Kf7 {[%clk 0:00:08]}  c5 {[%clk 0:00:27]} 56. Ke8 {[%clk 0:00:09]}  c4 {[%clk 0:00:27]} 57. Ke7 {[%clk 0:00:10]}  c3 {[%clk 0:00:27]} 58. Kf7 {[%clk 0:00:06]}  c2 {[%clk 0:00:27]} 59. Kf8 {[%clk 0:00:07]} 0-1


[Site "https://www.chess.com"]

[Event "Titled Tuesday Blitz January 03 Early 2023"]
[White "Tuleyeva-Aketayeva, Dana"]
[Black "Ocelak, Jakub"]
[WhiteFideId "13701932"]
[BlackFideId "23707933"]
[WhiteElo "2130"]
[BlackElo "2198"]
[Result "1-0"]
[Round "07"]
[TimeControl "180+2"]
[Date "2023.01.03"]
[WhiteClock "0:00:15"]
[BlackClock "0:00:03"]

1. d4 {[%clk 0:03:00]}  d6 {[%clk 0:02:56]} 2. Nf3 {[%clk 0:03:01]}  g6 {[%clk 0:02:49]} 3. g3 {[%clk 0:03:01]}  Bg7 {[%clk 0:02:50]} 4. Bg2 {[%clk 0:03:02]}  Bg4 {[%clk 0:02:44]} 5. O-O {[%clk 0:03:02]}  Qc8 {[%clk 0:02:44]} 6. c4 {[%clk 0:03:01]}  Nc6 {[%clk 0:02:36]} 7. d5 {[%clk 0:02:56]}  Nb8 {[%clk 0:02:28]} 8. Nc3 {[%clk 0:02:55]}  Nf6 {[%clk 0:01:36]} 9. Be3 {[%clk 0:02:51]}  O-O {[%clk 0:01:35]} 10. Rc1 {[%clk 0:02:48]}  c6 {[%clk 0:01:34]} 11. b4 {[%clk 0:02:40]}  Bh3 {[%clk 0:01:27]} 12. a4 {[%clk 0:02:32]}  Bxg2 {[%clk 0:01:25]} 13. Kxg2 {[%clk 0:02:32]}  a5 {[%clk 0:01:24]} 14. b5 {[%clk 0:02:19]}  c5 {[%clk 0:01:24]} 15. Bd2 {[%clk 0:01:56]}  Nbd7 {[%clk 0:01:19]} 16. e4 {[%clk 0:01:53]}  Ng4 {[%clk 0:01:04]} 17. h3 {[%clk 0:01:47]}  Nge5 {[%clk 0:01:04]} 18. Qe2 {[%clk 0:01:43]}  f5 {[%clk 0:00:59]} 19. Nxe5 {[%clk 0:01:36]}  Bxe5 {[%clk 0:00:34]} 20. f4 {[%clk 0:01:34]}  Bd4 {[%clk 0:00:31]} 21. exf5 {[%clk 0:01:26]}  Rxf5 {[%clk 0:00:22]} 22. Qxe7 {[%clk 0:01:26]}  Rf6 {[%clk 0:00:17]} 23. Ne4 {[%clk 0:01:20]}  Rf7 {[%clk 0:00:17]} 24. Qxf7+ {[%clk 0:01:15]}  Kxf7 {[%clk 0:00:17]} 25. Nxd6+ {[%clk 0:01:16]}  Kg8 {[%clk 0:00:16]} 26. Nxc8 {[%clk 0:01:16]}  Rxc8 {[%clk 0:00:17]} 27. Rce1 {[%clk 0:01:11]}  Nb6 {[%clk 0:00:16]} 28. Bxa5 {[%clk 0:01:08]}  Nxc4 {[%clk 0:00:15]} 29. d6 {[%clk 0:00:46]}  Nxd6 {[%clk 0:00:16]} 30. Bd2 {[%clk 0:00:39]}  c4 {[%clk 0:00:12]} 31. Re6 {[%clk 0:00:35]}  Nf5 {[%clk 0:00:09]} 32. a5 {[%clk 0:00:29]}  c3 {[%clk 0:00:08]} 33. Bc1 {[%clk 0:00:28]}  Ra8 {[%clk 0:00:07]} 34. a6 {[%clk 0:00:28]}  bxa6 {[%clk 0:00:06]} 35. Rxa6 {[%clk 0:00:27]}  Rb8 {[%clk 0:00:05]} 36. Ra5 {[%clk 0:00:21]}  Bb6 {[%clk 0:00:05]} 37. Ra3 {[%clk 0:00:20]}  Bd4 {[%clk 0:00:05]} 38. Rb3 {[%clk 0:00:20]}  Nd6 {[%clk 0:00:03]} 39. Rd1 {[%clk 0:00:15]} 1-0


[Site "https://www.chess.com"]

[Event "Titled Tuesday Blitz January 03 Early 2023"]
[White "Kabanova, Ekaterina"]
[Black "Flis, Pawel"]
[WhiteFideId "24112917"]
[BlackFideId "1112864"]
[WhiteElo "2088"]
[BlackElo "1879"]
[Result "1-0"]
[Round "07"]
[TimeControl "180+2"]
[Date "2023.01.03"]
[WhiteClock "0:00:51"]
[BlackClock "0:00:04"]

1. c4 {[%clk 0:03:00]}  Nf6 {[%clk 0:02:57]} 2. Nf3 {[%clk 0:02:59]}  g6 {[%clk 0:02:57]} 3. e3 {[%clk 0:02:59]}  Bg7 {[%clk 0:02:57]} 4. Be2 {[%clk 0:03:00]}  O-O {[%clk 0:02:57]} 5. O-O {[%clk 0:03:01]}  d5 {[%clk 0:02:57]} 6. a3 {[%clk 0:03:02]}  dxc4 {[%clk 0:02:54]} 7. Bxc4 {[%clk 0:03:01]}  c6 {[%clk 0:02:53]} 8. Be2 {[%clk 0:03:02]}  Bg4 {[%clk 0:02:51]} 9. Qc2 {[%clk 0:03:02]}  Nbd7 {[%clk 0:02:46]} 10. d3 {[%clk 0:03:02]}  Nb6 {[%clk 0:02:42]} 11. h3 {[%clk 0:03:02]}  Bxf3 {[%clk 0:02:41]} 12. Bxf3 {[%clk 0:03:03]}  e6 {[%clk 0:02:41]} 13. Nd2 {[%clk 0:03:03]}  Nbd5 {[%clk 0:02:40]} 14. b4 {[%clk 0:03:02]}  Nd7 {[%clk 0:02:31]} 15. Bb2 {[%clk 0:03:03]}  Bxb2 {[%clk 0:02:31]} 16. Qxb2 {[%clk 0:03:03]}  Qf6 {[%clk 0:02:31]} 17. d4 {[%clk 0:03:02]}  Qe7 {[%clk 0:02:28]} 18. Ne4 {[%clk 0:03:03]}  N7f6 {[%clk 0:02:27]} 19. Nc5 {[%clk 0:03:02]}  h5 {[%clk 0:02:16]} 20. Rab1 {[%clk 0:02:59]}  a6 {[%clk 0:02:14]} 21. Rfd1 {[%clk 0:02:58]}  Rac8 {[%clk 0:02:13]} 22. Qc1 {[%clk 0:02:57]}  e5 {[%clk 0:01:59]} 23. dxe5 {[%clk 0:02:52]}  Qxe5 {[%clk 0:01:58]} 24. Nxb7 {[%clk 0:02:46]}  Rfe8 {[%clk 0:01:43]} 25. Rd3 {[%clk 0:02:41]}  Ne4 {[%clk 0:01:36]} 26. Nc5 {[%clk 0:02:33]}  Nec3 {[%clk 0:01:30]} 27. Rb3 {[%clk 0:02:32]}  Na2 {[%clk 0:01:05]} 28. Qd2 {[%clk 0:02:25]}  Qa1+ {[%clk 0:00:58]} 29. Kh2 {[%clk 0:02:24]}  Nc1 {[%clk 0:00:54]} 30. Qd1 {[%clk 0:01:58]}  Qe5+ {[%clk 0:00:49]} 31. g3 {[%clk 0:01:54]}  Nxb3 {[%clk 0:00:46]} 32. Qxb3 {[%clk 0:01:53]}  Qf6 {[%clk 0:00:37]} 33. Kg2 {[%clk 0:01:51]}  Ra8 {[%clk 0:00:31]} 34. Bxd5 {[%clk 0:01:46]}  cxd5 {[%clk 0:00:30]} 35. Rxd5 {[%clk 0:01:46]}  Red8 {[%clk 0:00:27]} 36. e4 {[%clk 0:01:44]}  Rxd5 {[%clk 0:00:24]} 37. Qxd5 {[%clk 0:01:43]}  Rd8 {[%clk 0:00:23]} 38. Qc4 {[%clk 0:01:39]}  Rd2 {[%clk 0:00:21]} 39. Nd3 {[%clk 0:01:34]}  Qd6 {[%clk 0:00:17]} 40. Nf4 {[%clk 0:01:20]}  Qd4 {[%clk 0:00:14]} 41. Qxd4 {[%clk 0:01:10]}  Rxd4 {[%clk 0:00:15]} 42. Kf3 {[%clk 0:01:05]}  Rc4 {[%clk 0:00:13]} 43. Nd5 {[%clk 0:01:04]}  Kf8 {[%clk 0:00:12]} 44. Ke3 {[%clk 0:01:04]}  Ke8 {[%clk 0:00:11]} 45. Kd3 {[%clk 0:01:02]}  Rc1 {[%clk 0:00:12]} 46. a4 {[%clk 0:00:58]}  Ra1 {[%clk 0:00:09]} 47. a5 {[%clk 0:00:58]}  Ra2 {[%clk 0:00:08]} 48. f4 {[%clk 0:00:56]}  Kd8 {[%clk 0:00:08]} 49. g4 {[%clk 0:00:53]}  Ra3+ {[%clk 0:00:07]} 50. Kd4 {[%clk 0:00:53]}  Rxh3 {[%clk 0:00:07]} 51. gxh5 {[%clk 0:00:53]}  gxh5 {[%clk 0:00:08]} 52. Nc3 {[%clk 0:00:50]}  Rh1 {[%clk 0:00:06]} 53. b5 {[%clk 0:00:50]}  axb5 {[%clk 0:00:06]} 54. Nxb5 {[%clk 0:00:51]}  Kc8 {[%clk 0:00:06]} 55. Nd6+ {[%clk 0:00:50]}  Kc7 {[%clk 0:00:04]} 56. Nxf7 {[%clk 0:00:51]}  h4 {[%clk 0:00:03]} 57. Ng5 {[%clk 0:00:51]}  h3 {[%clk 0:00:04]} 58. Ke5 {[%clk 0:00:51]}  h2 {[%clk 0:00:04]} 59. Nf3 {[%clk 0:00:51]} 1-0


[Site "https://www.chess.com"]

[Event "Titled Tuesday Blitz January 03 Early 2023"]
[White "Necula, Iulian"]
[Black "Figorito, Nick"]
[WhiteFideId "1232380"]
[BlackFideId "30923689"]
[WhiteElo "1851"]
[BlackElo "2036"]
[Result "1-0"]
[Round "07"]
[TimeControl "180+2"]
[Date "2023.01.03"]
[WhiteClock "0:00:09"]
[BlackClock "0:00:22"]

1. d4 {[%clk 0:03:00]}  Nf6 {[%clk 0:02:59]} 2. Nc3 {[%clk 0:02:59]}  e6 {[%clk 0:02:59]} 3. Bf4 {[%clk 0:02:59]}  d5 {[%clk 0:02:58]} 4. e3 {[%clk 0:02:57]}  Bb4 {[%clk 0:02:58]} 5. Ne2 {[%clk 0:02:30]}  O-O {[%clk 0:02:53]} 6. a3 {[%clk 0:02:30]}  Be7 {[%clk 0:02:53]} 7. h3 {[%clk 0:02:29]}  c5 {[%clk 0:02:52]} 8. dxc5 {[%clk 0:02:24]}  Bxc5 {[%clk 0:02:51]} 9. Bg5 {[%clk 0:02:21]}  Nc6 {[%clk 0:02:50]} 10. Ng3 {[%clk 0:02:08]}  Be7 {[%clk 0:02:49]} 11. Bd3 {[%clk 0:02:05]}  e5 {[%clk 0:02:47]} 12. Bxf6 {[%clk 0:02:01]}  Bxf6 {[%clk 0:02:45]} 13. Nxd5 {[%clk 0:01:58]}  Be6 {[%clk 0:02:43]} 14. Nxf6+ {[%clk 0:01:57]}  Qxf6 {[%clk 0:02:44]} 15. Ne4 {[%clk 0:01:52]}  Qe7 {[%clk 0:02:42]} 16. Qh5 {[%clk 0:01:45]}  g6 {[%clk 0:02:31]} 17. Qf3 {[%clk 0:01:44]}  f5 {[%clk 0:02:29]} 18. Qg3 {[%clk 0:01:15]}  fxe4 {[%clk 0:02:26]} 19. Bxe4 {[%clk 0:01:16]}  Rad8 {[%clk 0:02:19]} 20. Bxg6 {[%clk 0:01:11]}  Qg7 {[%clk 0:02:09]} 21. Be4 {[%clk 0:01:00]}  Qxg3 {[%clk 0:02:07]} 22. fxg3 {[%clk 0:01:01]}  Bd5 {[%clk 0:02:05]} 23. Bxd5+ {[%clk 0:01:00]}  Rxd5 {[%clk 0:02:06]} 24. Ke2 {[%clk 0:00:45]}  Rfd8 {[%clk 0:02:04]} 25. Rad1 {[%clk 0:00:45]}  Rxd1 {[%clk 0:02:03]} 26. Rxd1 {[%clk 0:00:46]}  Rxd1 {[%clk 0:02:03]} 27. Kxd1 {[%clk 0:00:47]}  Kf7 {[%clk 0:02:03]} 28. Ke2 {[%clk 0:00:46]}  Ke6 {[%clk 0:02:03]} 29. Kd3 {[%clk 0:00:47]}  Kd5 {[%clk 0:02:01]} 30. c4+ {[%clk 0:00:46]}  Ke6 {[%clk 0:01:59]} 31. b4 {[%clk 0:00:46]}  Ne7 {[%clk 0:01:58]} 32. a4 {[%clk 0:00:44]}  Nf5 {[%clk 0:01:55]} 33. g4 {[%clk 0:00:43]}  Nh4 {[%clk 0:01:55]} 34. g3 {[%clk 0:00:42]}  Ng6 {[%clk 0:01:52]} 35. a5 {[%clk 0:00:42]}  Ne7 {[%clk 0:01:51]} 36. h4 {[%clk 0:00:41]}  Kd6 {[%clk 0:01:47]} 37. Ke4 {[%clk 0:00:38]}  b6 {[%clk 0:01:44]} 38. axb6 {[%clk 0:00:38]}  axb6 {[%clk 0:01:45]} 39. h5 {[%clk 0:00:35]}  Nc6 {[%clk 0:01:42]} 40. c5+ {[%clk 0:00:33]}  bxc5 {[%clk 0:01:40]} 41. bxc5+ {[%clk 0:00:34]}  Kxc5 {[%clk 0:01:39]} 42. g5 {[%clk 0:00:34]}  Kd6 {[%clk 0:01:39]} 43. g6 {[%clk 0:00:33]}  hxg6 {[%clk 0:00:52]} 44. h6 {[%clk 0:00:32]}  Ne7 {[%clk 0:00:48]} 45. h7 {[%clk 0:00:32]}  Nf5 {[%clk 0:00:48]} 46. h8=Q {[%clk 0:00:29]}  Nxg3+ {[%clk 0:00:48]} 47. Kf3 {[%clk 0:00:28]}  Nf5 {[%clk 0:00:48]} 48. Qf6+ {[%clk 0:00:27]}  Kd7 {[%clk 0:00:46]} 49. Qxe5 {[%clk 0:00:25]}  Ne7 {[%clk 0:00:43]} 50. Qd4+ {[%clk 0:00:23]}  Ke6 {[%clk 0:00:43]} 51. e4 {[%clk 0:00:22]}  Kf7 {[%clk 0:00:40]} 52. Qd7 {[%clk 0:00:22]}  Kf6 {[%clk 0:00:40]} 53. Qd6+ {[%clk 0:00:21]}  Kf7 {[%clk 0:00:40]} 54. e5 {[%clk 0:00:21]}  Nf5 {[%clk 0:00:39]} 55. e6+ {[%clk 0:00:21]}  Kf6 {[%clk 0:00:39]} 56. Qd7 {[%clk 0:00:21]}  Ne7 {[%clk 0:00:36]} 57. Kg4 {[%clk 0:00:19]}  g5 {[%clk 0:00:29]} 58. Qd8 {[%clk 0:00:20]}  Kxe6 {[%clk 0:00:28]} 59. Kxg5 {[%clk 0:00:19]}  Nd5 {[%clk 0:00:28]} 60. Qe8+ {[%clk 0:00:19]}  Kd6 {[%clk 0:00:29]} 61. Kf5 {[%clk 0:00:17]}  Ne7+ {[%clk 0:00:28]} 62. Ke4 {[%clk 0:00:17]}  Nc6 {[%clk 0:00:29]} 63. Qf8+ {[%clk 0:00:15]}  Kc7 {[%clk 0:00:29]} 64. Kd5 {[%clk 0:00:13]}  Nb8 {[%clk 0:00:24]} 65. Qe8 {[%clk 0:00:11]}  Nd7 {[%clk 0:00:23]} 66. Qe7 {[%clk 0:00:11]}  Kc8 {[%clk 0:00:22]} 67. Kd6 {[%clk 0:00:09]}  Nb6 {[%clk 0:00:22]} 68. Qc7# {[%clk 0:00:09]} 1-0


[Site "https://www.chess.com"]

[Event "Titled Tuesday Blitz January 03 Early 2023"]
[White "Kho, Darrell"]
[Black "Tharushi, T H D Niklesha"]
[WhiteFideId "1019317"]
[BlackFideId "9918264"]
[WhiteElo "2075"]
[BlackElo "1570"]
[Result "1-0"]
[Round "07"]
[TimeControl "180+2"]
[Date "2023.01.03"]
[WhiteClock "0:00:35"]
[BlackClock "0:01:37"]

1. e4 {[%clk 0:03:00]}  a6 {[%clk 0:02:59]} 2. d4 {[%clk 0:03:00]}  b5 {[%clk 0:02:58]} 3. Nf3 {[%clk 0:02:59]}  Bb7 {[%clk 0:02:57]} 4. Bd3 {[%clk 0:02:58]}  e6 {[%clk 0:02:57]} 5. O-O {[%clk 0:02:55]}  Be7 {[%clk 0:02:57]} 6. Qe2 {[%clk 0:02:51]}  Nf6 {[%clk 0:02:55]} 7. h3 {[%clk 0:02:43]}  O-O {[%clk 0:02:53]} 8. Bf4 {[%clk 0:02:40]}  c5 {[%clk 0:02:51]} 9. c3 {[%clk 0:02:33]}  c4 {[%clk 0:02:51]} 10. Bc2 {[%clk 0:02:33]}  Nc6 {[%clk 0:02:50]} 11. Nbd2 {[%clk 0:02:25]}  Qb6 {[%clk 0:02:45]} 12. e5 {[%clk 0:01:47]}  Nd5 {[%clk 0:02:43]} 13. Qe4 {[%clk 0:01:44]}  f5 {[%clk 0:02:38]} 14. exf6 {[%clk 0:01:42]}  Nxf6 {[%clk 0:02:37]} 15. Qe2 {[%clk 0:01:38]}  Nd5 {[%clk 0:02:31]} 16. Bg5 {[%clk 0:01:23]}  h6 {[%clk 0:02:23]} 17. Qe4 {[%clk 0:01:10]}  Nf6 {[%clk 0:02:02]} 18. Bxf6 {[%clk 0:01:09]}  Bxf6 {[%clk 0:02:02]} 19. Qh7+ {[%clk 0:00:48]}  Kf7 {[%clk 0:02:02]} 20. Ne4 {[%clk 0:00:35]}  Rh8 {[%clk 0:01:52]} 21. Qg6+ {[%clk 0:00:35]}  Kxg6 {[%clk 0:01:51]} 22. Neg5+ {[%clk 0:00:35]}  Kh5 {[%clk 0:01:37]} 23. g4# {[%clk 0:00:35]} 1-0


[Site "https://www.chess.com"]

[Event "Titled Tuesday Blitz January 03 Early 2023"]
[White "Kniazev, Igor"]
[Black "Lohani, Sujana"]
[WhiteFideId "4136349"]
[BlackFideId "12311987"]
[WhiteElo "2057"]
[BlackElo "1754"]
[Result "1-0"]
[Round "07"]
[TimeControl "180+2"]
[Date "2023.01.03"]
[WhiteClock "0:01:55"]
[BlackClock "0:01:25"]

1. e4 {[%clk 0:03:00]}  d6 {[%clk 0:02:57]} 2. d4 {[%clk 0:03:00]}  Nf6 {[%clk 0:02:57]} 3. Nc3 {[%clk 0:02:51]}  Nbd7 {[%clk 0:02:56]} 4. f4 {[%clk 0:02:49]}  e5 {[%clk 0:02:56]} 5. dxe5 {[%clk 0:02:47]}  dxe5 {[%clk 0:02:51]} 6. fxe5 {[%clk 0:02:46]}  Nxe5 {[%clk 0:02:48]} 7. Qxd8+ {[%clk 0:02:46]}  Kxd8 {[%clk 0:02:48]} 8. Bg5 {[%clk 0:02:44]}  Be7 {[%clk 0:02:37]} 9. O-O-O+ {[%clk 0:02:44]}  Bd7 {[%clk 0:02:30]} 10. Nf3 {[%clk 0:02:40]}  Nxf3 {[%clk 0:02:29]} 11. gxf3 {[%clk 0:02:39]}  c6 {[%clk 0:02:30]} 12. Bh3 {[%clk 0:02:34]}  Kc7 {[%clk 0:02:23]} 13. Bxd7 {[%clk 0:02:34]}  Nxd7 {[%clk 0:02:14]} 14. Bxe7 {[%clk 0:02:34]}  Rhe8 {[%clk 0:02:11]} 15. Bd6+ {[%clk 0:02:33]}  Kb6 {[%clk 0:02:09]} 16. b4 {[%clk 0:02:29]}  a5 {[%clk 0:02:08]} 17. Kb2 {[%clk 0:02:16]}  axb4 {[%clk 0:02:08]} 18. Bxb4 {[%clk 0:02:16]}  c5 {[%clk 0:02:02]} 19. Rxd7 {[%clk 0:02:12]}  cxb4 {[%clk 0:02:01]} 20. Nd5+ {[%clk 0:02:13]}  Kc6 {[%clk 0:02:00]} 21. Rc7+ {[%clk 0:02:12]}  Kb5 {[%clk 0:01:59]} 22. Rxb7+ {[%clk 0:02:12]}  Kc6 {[%clk 0:01:57]} 23. Rb6+ {[%clk 0:02:07]}  Kc5 {[%clk 0:01:53]} 24. Rb7 {[%clk 0:02:08]}  Ra3 {[%clk 0:01:50]} 25. Nxb4 {[%clk 0:02:02]}  Rea8 {[%clk 0:01:48]} 26. Rd1 {[%clk 0:02:01]}  R3a4 {[%clk 0:01:44]} 27. c3 {[%clk 0:01:58]}  Kc4 {[%clk 0:01:34]} 28. Rd4+ {[%clk 0:01:55]}  Kc5 {[%clk 0:01:33]} 29. Rd5+ {[%clk 0:01:55]}  Kc4 {[%clk 0:01:25]} 30. Rc7# {[%clk 0:01:55]} 1-0


[Site "https://www.chess.com"]